{"text_format":"3","workbook":"xlsx","n_sheets":1,"sheets":["Planlegger for julebudsjett"],"not_rendered":{"defined_names":1},"read":"whole","date_system":"1900"}

{"sheet":"Planlegger for julebudsjett","index":0,"n_rows":37,"n_cols":12,"rows_kept":37,"merged":[[1,1,7,4],[9,1,9,4],[9,8,9,11],[19,1,19,4],[19,8,19,11],[30,1,30,4],[30,8,30,11]]}
[]
[null,"Planlegger for\njulebudsjett"]
[]
[{"$nulls":8},"JULEBUDSJETT",null,{"$f":"SUM(Gaver[Budsjett],Emballasje[Budsjett],(Reise[Budsjett],(Måltider[Budsjett],(Underholdning[Budsjett],Diverse[Budsjett]))))","v":{"v":750,"d":"kr 750.00"}}]
[{"$nulls":8},"FAKTISK BRUKT",null,{"$f":"SUM((Gaver[Faktisk],(Emballasje[Faktisk],(Reise[Faktisk],(Måltider[Faktisk],(Underholdning[Faktisk],(Diverse[Faktisk])))))))","v":{"v":820,"d":"kr 820.00"}}]
[]
[{"$nulls":8},"FORSKJELL (over/under budsjett)",null,{"$f":"SUM(K4-K5)","v":{"v":-70,"d":"-kr 70.00"}}]
[]
[]
[null,"Gaver",{"$nulls":6},"Måltider"]
[null,"Post","Budsjett","Faktisk","Forskjell",{"$nulls":3},"Post","Budsjett","Faktisk","Forskjell"]
[null,"Familie",{"v":500,"d":"kr 500.00"},{"v":495,"d":"kr 495.00"},{"$f":"Gaver[[#This Row],[Budsjett]]-Gaver[[#This Row],[Faktisk]]","v":{"v":5,"d":"kr 5.00"}},{"$nulls":3},"Dagligvarer",null,null,{"$f":"Måltider[[#This Row],[Budsjett]]-Måltider[[#This Row],[Faktisk]]","v":{"v":0,"d":"kr 0.00"}}]
[null,"Venner",{"v":250,"d":"kr 250.00"},{"v":325,"d":"kr 325.00"},{"$f":"Gaver[[#This Row],[Budsjett]]-Gaver[[#This Row],[Faktisk]]","v":{"v":-75,"d":"-kr 75.00"}},{"$nulls":3},"Drikkevarer",null,null,{"$f":"Måltider[[#This Row],[Budsjett]]-Måltider[[#This Row],[Faktisk]]","v":{"v":0,"d":"kr 0.00"}}]
[null,"Kolleger",null,null,{"$f":"Gaver[[#This Row],[Budsjett]]-Gaver[[#This Row],[Faktisk]]","v":{"v":0,"d":"kr 0.00"}},{"$nulls":3},"Pynt",null,null,{"$f":"Måltider[[#This Row],[Budsjett]]-Måltider[[#This Row],[Faktisk]]","v":{"v":0,"d":"kr 0.00"}}]
[null,"Lærere, barnepiker, barnevakter og så videre.",null,null,{"$f":"Gaver[[#This Row],[Budsjett]]-Gaver[[#This Row],[Faktisk]]","v":{"v":0,"d":"kr 0.00"}},{"$nulls":3},"Andre (trykk på TAB i siste kolonnen i denne raden for å legge til rad)",null,null,{"$f":"Måltider[[#This Row],[Budsjett]]-Måltider[[#This Row],[Faktisk]]","v":{"v":0,"d":"kr 0.00"}}]
[null,"Veldedige bidrag",null,null,{"$f":"Gaver[[#This Row],[Budsjett]]-Gaver[[#This Row],[Faktisk]]","v":{"v":0,"d":"kr 0.00"}},{"$nulls":3},"Totalt",{"$f":"SUBTOTAL(109,Måltider[Budsjett])","v":{"v":0,"d":"kr 0.00"}},{"$f":"SUBTOTAL(109,Måltider[Faktisk])","v":{"v":0,"d":"kr 0.00"}},{"$f":"SUBTOTAL(109,Måltider[Forskjell])","v":{"v":0,"d":"kr 0.00"}}]
[null,"Andre (trykk på TAB i siste kolonnen i denne raden for å legge til rad)",null,null,{"$f":"Gaver[[#This Row],[Budsjett]]-Gaver[[#This Row],[Faktisk]]","v":{"v":0,"d":"kr 0.00"}}]
[null,"Totalt",{"$f":"SUBTOTAL(109,Gaver[Budsjett])","v":{"v":750,"d":"kr 750.00"}},{"$f":"SUBTOTAL(109,Gaver[Faktisk])","v":{"v":820,"d":"kr 820.00"}},{"$f":"SUBTOTAL(109,Gaver[Forskjell])","v":{"v":-70,"d":"-kr 70.00"}}]
[]
[null,"Emballasje",{"$nulls":6},"Underholdning"]
[null,"Post","Budsjett","Faktisk","Forskjell",{"$nulls":3},"Post","Budsjett","Faktisk","Forskjell"]
[null,"Gaveinnpakning",null,null,{"$f":"Emballasje[[#This Row],[Budsjett]]-Emballasje[[#This Row],[Faktisk]]","v":{"v":0,"d":"kr 0.00"}},{"$nulls":3},"Arrangementshjelp (bartender, catering, vaskehjelp og så videre)",null,null,{"$f":"Underholdning[[#This Row],[Budsjett]]-Underholdning[[#This Row],[Faktisk]]","v":{"v":0,"d":"kr 0.00"}}]
[null,"Gavelapper",null,null,{"$f":"Emballasje[[#This Row],[Budsjett]]-Emballasje[[#This Row],[Faktisk]]","v":{"v":0,"d":"kr 0.00"}},{"$nulls":3},"Pynt",null,null,{"$f":"Underholdning[[#This Row],[Budsjett]]-Underholdning[[#This Row],[Faktisk]]","v":{"v":0,"d":"kr 0.00"}}]
[null,"Utstyr (bånd, tape og så videre)",null,null,{"$f":"Emballasje[[#This Row],[Budsjett]]-Emballasje[[#This Row],[Faktisk]]","v":{"v":0,"d":"kr 0.00"}},{"$nulls":3},"Mat og drikkevarer",null,null,{"$f":"Underholdning[[#This Row],[Budsjett]]-Underholdning[[#This Row],[Faktisk]]","v":{"v":0,"d":"kr 0.00"}}]
[null,"Esker",null,null,{"$f":"Emballasje[[#This Row],[Budsjett]]-Emballasje[[#This Row],[Faktisk]]","v":{"v":0,"d":"kr 0.00"}},{"$nulls":3},"Klær",null,null,{"$f":"Underholdning[[#This Row],[Budsjett]]-Underholdning[[#This Row],[Faktisk]]","v":{"v":0,"d":"kr 0.00"}}]
[null,"Porto",null,null,{"$f":"Emballasje[[#This Row],[Budsjett]]-Emballasje[[#This Row],[Faktisk]]","v":{"v":0,"d":"kr 0.00"}},{"$nulls":3},"Billetter",null,null,{"$f":"Underholdning[[#This Row],[Budsjett]]-Underholdning[[#This Row],[Faktisk]]","v":{"v":0,"d":"kr 0.00"}}]
[null,"Andre (trykk på TAB i siste kolonnen i denne raden for å legge til rad)",null,null,{"$f":"Emballasje[[#This Row],[Budsjett]]-Emballasje[[#This Row],[Faktisk]]","v":{"v":0,"d":"kr 0.00"}},{"$nulls":3},"Restaurantbesøk",null,null,{"$f":"Underholdning[[#This Row],[Budsjett]]-Underholdning[[#This Row],[Faktisk]]","v":{"v":0,"d":"kr 0.00"}}]
[null,"Totalt",{"$f":"SUBTOTAL(109,Emballasje[Budsjett])","v":{"v":0,"d":"kr 0.00"}},{"$f":"SUBTOTAL(109,Emballasje[Faktisk])","v":{"v":0,"d":"kr 0.00"}},{"$f":"SUBTOTAL(109,Emballasje[Forskjell])","v":{"v":0,"d":"kr 0.00"}},{"$nulls":3},"Andre (trykk på TAB i siste kolonnen i denne raden for å legge til rad)",null,null,{"$f":"Underholdning[[#This Row],[Budsjett]]-Underholdning[[#This Row],[Faktisk]]","v":{"v":0,"d":"kr 0.00"}}]
[{"$nulls":8},"Totalt",{"$f":"SUBTOTAL(109,Underholdning[Budsjett])","v":{"v":0,"d":"kr 0.00"}},{"$f":"SUBTOTAL(109,Underholdning[Faktisk])","v":{"v":0,"d":"kr 0.00"}},{"$f":"SUBTOTAL(109,Underholdning[Forskjell])","v":{"v":0,"d":"kr 0.00"}}]
[]
[null,"Reise",{"$nulls":6},"Diverse"]
[null,"Post","Budsjett","Faktisk","Forskjell",{"$nulls":3},"Post","Budsjett","Faktisk","Forskjell"]
[null,"Flyreise",null,null,{"$f":"Reise[[#This Row],[Budsjett]]-Reise[[#This Row],[Faktisk]]","v":{"v":0,"d":"kr 0.00"}},{"$nulls":3},"Bilder",null,null,{"$f":"Diverse[[#This Row],[Budsjett]]-Diverse[[#This Row],[Faktisk]]","v":{"v":0,"d":"kr 0.00"}}]
[null,"Overnatting",null,null,{"$f":"Reise[[#This Row],[Budsjett]]-Reise[[#This Row],[Faktisk]]","v":{"v":0,"d":"kr 0.00"}},{"$nulls":3},"Drivstoff ",null,null,{"$f":"Diverse[[#This Row],[Budsjett]]-Diverse[[#This Row],[Faktisk]]","v":{"v":0,"d":"kr 0.00"}}]
[null,"Transport",null,null,{"$f":"Reise[[#This Row],[Budsjett]]-Reise[[#This Row],[Faktisk]]","v":{"v":0,"d":"kr 0.00"}},{"$nulls":3},"Andre (trykk på TAB i siste kolonnen i denne raden for å legge til rad)",null,null,{"$f":"Diverse[[#This Row],[Budsjett]]-Diverse[[#This Row],[Faktisk]]","v":{"v":0,"d":"kr 0.00"}}]
[null,"Andre (trykk på TAB i siste kolonnen i denne raden for å legge til rad)",null,null,{"$f":"Reise[[#This Row],[Budsjett]]-Reise[[#This Row],[Faktisk]]","v":{"v":0,"d":"kr 0.00"}},{"$nulls":3},"Totalt",{"$f":"SUBTOTAL(109,Diverse[Budsjett])","v":{"v":0,"d":"kr 0.00"}},{"$f":"SUBTOTAL(109,Diverse[Faktisk])","v":{"v":0,"d":"kr 0.00"}},{"$f":"SUBTOTAL(109,Diverse[Forskjell])","v":{"v":0,"d":"kr 0.00"}}]
[null,"Totalt",{"$f":"SUBTOTAL(109,Reise[Budsjett])","v":{"v":0,"d":"kr 0.00"}},{"$f":"SUBTOTAL(109,Reise[Faktisk])","v":{"v":0,"d":"kr 0.00"}},{"$f":"SUBTOTAL(109,Reise[Forskjell])","v":{"v":0,"d":"kr 0.00"}}]